Workbook

Sheet INPUT
B1: Proposed Stormwater Calculation Tool - Calhoun County Stormwater Management TRM
B3: Stormwater Management Requirements
B4: Site Name: | C4: Example 20-acre Commercial Development
B5: Outlet ID:
B7: If Restricted Outflow Rate is required by Reviewing Agency:
B8: 25-Year Allowable Peak Discharge*: | D8: 2 | E8: cfs
B12: PRE-DEVELOPMENT CONDITIONS
B13: Sub-Drainage District ID | C13: Area | D13: Description/Hydrologic Group | F13: Runoff Coefficient (C) | G13: A*C | H13: Curve Number (CN) | I13: A*CN
C14: (acres) | D14: (select from list)
B15: 1 | C15: 20 | D15: Row Crops (Type B) | F15: =IFERROR(VLOOKUP(D15,'REF_Runoff Coefficients'!$A$2:$B$43,2,FALSE),"") -> 0.2 | G15: =IFERROR(C15*F15,0) -> 4 | H15: =IFERROR(VLOOKUP(D15,'REF_Curve Numbers'!$A$2:$B$43,2,FALSE),"") -> 75 | I15: =IFERROR(C15*H15,0) -> 1500
B16: 2 | F16: =IFERROR(VLOOKUP(D16,'REF_Runoff Coefficients'!$A$2:$B$43,2,FALSE),"") ->  | G16: 0 | H16: =IFERROR(VLOOKUP(D16,'REF_Curve Numbers'!$A$2:$B$43,2,FALSE),"") ->  | I16: 0
B17: 3 | F17: =IFERROR(VLOOKUP(D17,'REF_Runoff Coefficients'!$A$2:$B$43,2,FALSE),"") ->  | G17: 0 | H17: =IFERROR(VLOOKUP(D17,'REF_Curve Numbers'!$A$2:$B$43,2,FALSE),"") ->  | I17: 0
B18: 4 | F18: =IFERROR(VLOOKUP(D18,'REF_Runoff Coefficients'!$A$2:$B$43,2,FALSE),"") ->  | G18: 0 | H18: =IFERROR(VLOOKUP(D18,'REF_Curve Numbers'!$A$2:$B$43,2,FALSE),"") ->  | I18: 0
B19: 5 | F19: =IFERROR(VLOOKUP(D19,'REF_Runoff Coefficients'!$A$2:$B$43,2,FALSE),"") ->  | G19: 0 | H19: =IFERROR(VLOOKUP(D19,'REF_Curve Numbers'!$A$2:$B$43,2,FALSE),"") ->  | I19: 0
B20: 6 | F20: =IFERROR(VLOOKUP(D20,'REF_Runoff Coefficients'!$A$2:$B$43,2,FALSE),"") ->  | G20: 0 | H20: =IFERROR(VLOOKUP(D20,'REF_Curve Numbers'!$A$2:$B$43,2,FALSE),"") ->  | I20: 0
B21: TOTAL AREA (acres) | C21: =SUM(C15:C20) -> 20 | F21: Weighted C | G21: =IFERROR(SUM(G15:G20)/$C$21,0) -> 0.2 | H21: Weighted CN | I21: =IFERROR(SUM(I15:I20)/$C$21,0) -> 75
B22: (total area of developed site)
B24: POST-DEVELOPMENT CONDITIONS
B25: Sub-Drainage District ID | C25: Area | D25: Description/Hydrologic Group | F25: Runoff Coefficient (C) | G25: A*C | H25: Curve Number (CN) | I25: A*CN
C26: (acres) | D26: (select from list)
B27: 1 | C27: 15 | D27: Impervious Cover (pavement/gravel/rooftop) | F27: =IFERROR(VLOOKUP(D27,'REF_Runoff Coefficients'!$A$2:$B$43,2,FALSE),"") -> 0.9 | G27: =IFERROR(C27*F27,0) -> 13.5 | H27: =IFERROR(VLOOKUP(D27,'REF_Curve Numbers'!$A$2:$B$43,2,FALSE),"") -> 98 | I27: =IFERROR(C27*H27,0) -> 1470
B28: 2 | C28: 5 | D28: Manicured Lawn Areas (Type B) | F28: =IFERROR(VLOOKUP(D28,'REF_Runoff Coefficients'!$A$2:$B$43,2,FALSE),"") -> 0.2 | G28: 1 | H28: =IFERROR(VLOOKUP(D28,'REF_Curve Numbers'!$A$2:$B$43,2,FALSE),"") -> 61 | I28: 305
B29: 3 | F29: =IFERROR(VLOOKUP(D29,'REF_Runoff Coefficients'!$A$2:$B$43,2,FALSE),"") ->  | G29: 0 | H29: =IFERROR(VLOOKUP(D29,'REF_Curve Numbers'!$A$2:$B$43,2,FALSE),"") ->  | I29: 0
B30: 4 | F30: =IFERROR(VLOOKUP(D30,'REF_Runoff Coefficients'!$A$2:$B$43,2,FALSE),"") ->  | G30: 0 | H30: =IFERROR(VLOOKUP(D30,'REF_Curve Numbers'!$A$2:$B$43,2,FALSE),"") ->  | I30: 0
B31: 5 | F31: =IFERROR(VLOOKUP(D31,'REF_Runoff Coefficients'!$A$2:$B$43,2,FALSE),"") ->  | G31: 0 | H31: =IFERROR(VLOOKUP(D31,'REF_Curve Numbers'!$A$2:$B$43,2,FALSE),"") ->  | I31: 0
B32: 6 | F32: =IFERROR(VLOOKUP(D32,'REF_Runoff Coefficients'!$A$2:$B$43,2,FALSE),"") ->  | G32: 0 | H32: =IFERROR(VLOOKUP(D32,'REF_Curve Numbers'!$A$2:$B$43,2,FALSE),"") ->  | I32: 0
B33: TOTAL AREA (acres) | C33: =SUM(C27:C32) -> 20 | F33: Weighted C | G33: =IFERROR(SUM(G27:G32)/$C$33,0) -> 0.725 | H33: Weighted CN | I33: =IFERROR(SUM(I27:I32)/$C$33,0) -> 88.75
B34: (total area of developed site)
B36: TIME OF CONCENTRATION (PRE-DEVELOPMENT)
B37: Segment Length | C37: Segment Description | D37: K | E37: Slope % (S) | F37: S0.5 | G37: V | H37: TC
B38: (L) (ft) | C38: (choose from list) | E38: (enter slope) | G38: K*S0.5 | H38: L/(V*3600)
B39: 100 | C39: Sheet Flow | D39: =IFERROR(VLOOKUP(C39,'REF_Time of Concentration'!$A$2:$B$5,2,FALSE),"") -> 0.48 | E39: 0.4 | F39: =E39^0.5 -> 0.632455532 | G39: =IFERROR(D39*F39,"") -> 0.3035786554 | H39: =IFERROR(B39/(G39*3600),0) -> 0.0915010897
B40: 500 | C40: Waterway | D40: =IFERROR(VLOOKUP(C40,'REF_Time of Concentration'!$A$2:$B$5,2,FALSE),"") -> 1.2 | E40: 0.5 | F40: =E40^0.5 -> 0.7071067812 | G40: =IFERROR(D40*F40,"") -> 0.8485281374 | H40: 0.1636821253
B41: 800 | C41: Small Tributary | D41: =IFERROR(VLOOKUP(C41,'REF_Time of Concentration'!$A$2:$B$5,2,FALSE),"") -> 2.1 | E41: 0.75 | F41: 0.8660254038 | G41: 1.818653348 | H41: 0.1221905332
D42: =IFERROR(VLOOKUP(C42,'REF_Time of Concentration'!$A$2:$B$5,2,FALSE),"") ->  | F42: 0 | H42: 0
D43: =IFERROR(VLOOKUP(C43,'REF_Time of Concentration'!$A$2:$B$5,2,FALSE),"") ->  | F43: 0 | H43: 0
D44: =IFERROR(VLOOKUP(C44,'REF_Time of Concentration'!$A$2:$B$5,2,FALSE),"") ->  | F44: 0 | H44: 0
D45: =IFERROR(VLOOKUP(C45,'REF_Time of Concentration'!$A$2:$B$5,2,FALSE),"") ->  | F45: 0 | H45: 0
D46: =IFERROR(VLOOKUP(C46,'REF_Time of Concentration'!$A$2:$B$5,2,FALSE),"") ->  | F46: 0 | H46: 0
D47: =IFERROR(VLOOKUP(C47,'REF_Time of Concentration'!$A$2:$B$5,2,FALSE),"") ->  | F47: 0 | H47: 0
D48: =IFERROR(VLOOKUP(C48,'REF_Time of Concentration'!$A$2:$B$5,2,FALSE),"") ->  | F48: 0 | H48: 0
B49: Total TC (hrs) | H49: =SUM(H39:H48) -> 0.3773737481
B51: TIME OF CONCENTRATION (POST-DEVELOPMENT)
B52: Segment Length | C52: Segment Description | D52: K | E52: Slope % (S) | F52: S0.5 | G52: V | H52: TC
B53: (L) (ft) | C53: (choose from list) | E53: (enter slope) | G53: K*S0.5 | H53: L/(V*3600)
B54: 30 | C54: Sheet Flow | D54: =IFERROR(VLOOKUP(C54,'REF_Time of Concentration'!$A$2:$B$5,2,FALSE),"") -> 0.48 | E54: 1.25 | F54: =E54^0.5 -> 1.118033989 | G54: =IFERROR(D54*F54,"") -> 0.5366563146 | H54: =IFERROR(B54/(G54*3600),0) -> 0.01552824984
B55: 300 | C55: Waterway | D55: =IFERROR(VLOOKUP(C55,'REF_Time of Concentration'!$A$2:$B$5,2,FALSE),"") -> 1.2 | E55: 0.8 | F55: =E55^0.5 -> 0.894427191 | G55: =IFERROR(D55*F55,"") -> 1.073312629 | H55: 0.07764124922
B56: 1000 | C56: Small Tributary | D56: =IFERROR(VLOOKUP(C56,'REF_Time of Concentration'!$A$2:$B$5,2,FALSE),"") -> 2.1 | E56: 0.5 | F56: 0.7071067812 | G56: 1.48492424 | H56: 0.187065286
D57: =IFERROR(VLOOKUP(C57,'REF_Time of Concentration'!$A$2:$B$5,2,FALSE),"") ->  | F57: 0 | H57: 0
D58: =IFERROR(VLOOKUP(C58,'REF_Time of Concentration'!$A$2:$B$5,2,FALSE),"") ->  | F58: 0 | H58: 0
D59: =IFERROR(VLOOKUP(C59,'REF_Time of Concentration'!$A$2:$B$5,2,FALSE),"") ->  | F59: 0 | H59: 0
D60: =IFERROR(VLOOKUP(C60,'REF_Time of Concentration'!$A$2:$B$5,2,FALSE),"") ->  | F60: 0 | H60: 0
D61: =IFERROR(VLOOKUP(C61,'REF_Time of Concentration'!$A$2:$B$5,2,FALSE),"") ->  | F61: 0 | H61: 0
D62: =IFERROR(VLOOKUP(C62,'REF_Time of Concentration'!$A$2:$B$5,2,FALSE),"") ->  | F62: 0 | H62: 0
D63: =IFERROR(VLOOKUP(C63,'REF_Time of Concentration'!$A$2:$B$5,2,FALSE),"") ->  | F63: 0 | H63: 0
B64: Total TC (hrs) | H64: =SUM(H54:H63) -> 0.2802347851

Sheet SUMMARY
B2: Summary
B3: Outlet ID | C3: =INPUT!C5 -> 0 | D3: Notes
B4: Total Acreage (ac) | C4: =INPUT!C33 -> 20
B5: Weighted C - Proposed Conditions | C5: =IFERROR(INPUT!G33,0) -> 0.725
B6: Weighted CN - Proposed Conditions | C6: =IFERROR(INPUT!I33,0) -> 88.75
B7: Time of Concentration PRE (hr) | C7: =INPUT!H49 -> 0.3773737481
B8: Time of Concentration POST (hr) | C8: =INPUT!H64 -> 0.2802347851
B9: Water Quality (WQ) Volume (ft3) | C9: =IFERROR('PRE vs POST Calculations'!H4,0) -> 52635 | D9: Volume from 1 inch of rainfall
B10: Channel Protection (CP) Volume (ft3) | C10: ='PRE vs POST Calculations'!K30 -> 77855.75785 | D10: 2-yr / 24-hr rainfall event (volume difference between pre-development and post-development
B11: Infiltration Volume (ft3) - Required | C11: =IFERROR('PRE vs POST Calculations'!L37,0) -> 77855.75785 | D11: Larger of the WQ volume and CP volume
B12: Infiltration Volume (ft3) - Provided | C12: ='BMP Volume Calculations'!J20 -> 77657.5 | D12: Computed from the "BMP INPUT" worksheet
B13: 25-Year Peak Allowable Discharge (cfs) | C13: =IFERROR(IF(INPUT!D8="",'PRE vs POST Calculations'!W85,INPUT!D8),0) -> 2
B14: 25-Year Flood Protection (FP) Volume (ft3) | C14: ='PRE vs POST Calculations'!AS29 -> 101579.5285
B16: 25-Year TOTAL BASIN VOLUME (ft3) - Pre vs Post | C16: =C14 -> 101579.5285 | D16: Use the larger of these two values (represents net 25-year volume, including credit for Infiltration Volume)
B17: 25-Year TOTAL BASIN VOLUME (ft3) - Restricted Outlet | C17: =IFERROR('Restricted Outlet Calculations'!B9,"N/A") -> 170000
B18: 25-Year Volume (ft3) - REQUIRED (net of infiltration) | C18: =MAX(C16:C17)-C12 -> 92342.5
B20: 100-year RETENTION VOLUME (ft3) | C20: =ROUND('PRE vs POST Calculations'!AM27,-2) -> 330900 | D20: Use only for sites with approved No Outlet Certification

Sheet BMP INPUT
B2: Bioretention/Rain Garden/Infiltration Basin #1 | E2: Porous Pavement #1 | H2: Dry Well #1 | K2: Bioswale #1 | N2: Other #1
B3: Avg Design Infiltration Rate (in/hr) | C3: 0.6 | E3: Avg Design Infiltration Rate (in/hr) | H3: Avg Design Infiltration Rate (in/hr) | K3: Avg Design Infiltration Rate (in/hr) | N3: Type of BMP
B4: Area of Bioretention Ponding at Max. Depth (ft2) | C4: 12000 | E4: Average Bed Area (ft2) | H4: Average Bed Area (ft2) | K4: Length of Swale Per Check Dam (ft) | N4: Avg Design Infiltration Rate (in/hr)
B5: Area of Bioretention at Bottom (ft2) | C5: 11000 | E5: Maximum Water Depth (ft) | H5: Maximum Water Depth (ft) | K5: Depth of Check Dam (ft) | N5: Bed Area (ft2)
B6: Maximum Ponding Depth (ft) | C6: 1 | E6: Void Ratio (0.30 max) | H6: Void Ratio | I6: 0.3 | K6: Top Width of Check Dam (ft) | N6: Storage Volume (ft3)
B7: BMP Area (ft2) | C7: =(C4+C5)/2 -> 11500 | E7: Storage Volume (ft3) | F7: =IF(F6>0.3,F4*F5*0.3,F4*F5*F6) -> 0 | H7: Storage Volume (ft3) | I7: =I4*I5*I6 -> 0 | K7: Bottom Width of Check Dam (ft)
B8: Surface Storage Volume (ft3) | C8: =IFERROR(AVERAGE(C4:C5)*C6,0) -> 11500 | K8: Storage Volume (ft3) | L8: =0.5*L4*L5*(L6+L7)/2 -> 0 | N8: Other #2
E9: Porous Pavement #2 | H9: Dry Well #2 | N9: Type of BMP
B10: Area of engineered soil media (ft) | C10: 11000 | E10: Avg Design Infiltration Rate (in/hr) | H10: Avg Design Infiltration Rate (in/hr) | K10: Bioswale #2 | N10: Avg Design Infiltration Rate (in/hr)
B11: Depth of engineered soil media (ft) | C11: 3 | E11: Average Bed Area (ft2) | H11: Average Bed Area (ft2) | K11: Avg Design Infiltration Rate (in/hr) | N11: Bed Area (ft2)
B12: Void Ratio (max 0.30) | C12: 0.3 | E12: Maximum Water Depth (ft) | H12: Maximum Water Depth (ft) | K12: Length of Swale Per Check Dam (ft) | N12: Storage Volume (ft3)
B13: Soil Storage Volume (ft3) | C13: =IF(C12>0.3,C10*C11*0.3,C10*C11*C12) -> 9900 | E13: Void Ratio (0.30 max) | H13: Void Ratio | I13: 0.3 | K13: Depth of Check Dam (ft)
B14: TOTAL STORAGE VOLUME (ft3) | C14: =C8+C13 -> 21400 | E14: Storage Volume (ft3) | F14: =IF(F13>0.3,F11*F12*0.3,F11*F12*F13) -> 0 | H14: Storage Volume (ft3) | I14: =I11*I12*I13 -> 0 | K14: Top Width of Check Dam (ft) | N14: Other #3
B15: TOTAL VOLUME: STORAGE + ACTIVE INFILTRATION | C15: =(C7/12*C3*6)+C14 -> 24850 | K15: Bottom Width of Check Dam (ft) | N15: Type of BMP
E16: Porous Pavement #3 | H16: Dry Well #3 | K16: Storage Volume (ft3) | L16: =0.5*L12*L13*(L14+L15)/2 -> 0 | N16: Avg Design Infiltration Rate (in/hr)
B17: Bioretention/Rain Garden/Infiltration Basin #2 | E17: Avg Design Infiltration Rate (in/hr) | H17: Avg Design Infiltration Rate (in/hr) | N17: Bed Area (ft2)
B18: Avg Design Infiltration Rate (in/hr) | C18: 0.7 | E18: Average Bed Area (ft2) | H18: Average Bed Area (ft2) | K18: Bioswale #3 | N18: Storage Volume (ft3)
B19: Area of Bioretention Ponding at Max. Depth (ft2) | C19: 10500 | E19: Maximum Water Depth (ft) | H19: Maximum Water Depth (ft) | K19: Avg Design Infiltration Rate (in/hr)
B20: Area of Bioretention at Bottom (ft2) | C20: 9600 | E20: Void Ratio (0.30 max) | H20: Void Ratio | I20: 0.3 | K20: Length of Swale Per Check Dam (ft)
B21: Maximum Ponding Depth (ft) | C21: 1 | E21: Storage Volume (ft3) | F21: =IF(F20>0.3,F18*F19*0.3,F18*F19*F20) -> 0 | H21: Storage Volume (ft3) | I21: =I18*I19*I20 -> 0 | K21: Depth of Check Dam (ft)
B22: BMP Area (ft2) | C22: =(C19+C20)/2 -> 10050 | K22: Top Width of Check Dam (ft)
B23: Surface Storage Volume (ft3) | C23: =IFERROR(AVERAGE(C19:C20)*C21,) -> 10050 | K23: Bottom Width of Check Dam (ft)
K24: Storage Volume (ft3) | L24: =0.5*L20*L21*(L22+L23)/2 -> 0
B25: Area of engineered soil media (ft) | C25: 9600
B26: Depth of engineered soil media (ft) | C26: 3
B27: Void Ratio (max 0.30) | C27: 0.3
B28: Soil Storage Volume (ft3) | C28: =IF(C27>0.3,C25*C26*0.3,C25*C26*C27) -> 8640
B29: TOTAL STORAGE VOLUME (ft3) | C29: =C23+C28 -> 18690
B30: TOTAL VOLUME: STORAGE + ACTIVE INFILTRATION | C30: =(C22/12*C18*6)+C29 -> 22207.5
B32: Bioretention/Rain Garden/Infiltration Basin #3
B33: Avg Design Infiltration Rate (in/hr) | C33: 2.4
B34: Area of Bioretention Ponding at Max. Depth (ft2) | C34: 9000
B35: Area of Bioretention at Bottom (ft2) | C35: 8200
B36: Maximum Ponding Depth (ft) | C36: 1.5
B37: BMP Area (ft2) | C37: =(C34+C35)/2 -> 8600
B38: Surface Storage Volume (ft3) | C38: =IFERROR(AVERAGE(C34:C35)*C36,0) -> 12900
B40: Area of engineered soil media (ft) | C40: 8200
B41: Depth of engineered soil media (ft) | C41: 3
B42: Void Ratio (max 0.30) | C42: 0.3
B43: Soil Storage Volume (ft3) | C43: =IF(C42>0.3,C40*C41*0.3,C40*C41*C42) -> 7380
B44: TOTAL STORAGE VOLUME (ft3) | C44: =C38+C43 -> 20280
B45: TOTAL VOLUME: STORAGE + ACTIVE INFILTRATION | C45: =(C37/12*C33*6)+C44 -> 30600

Sheet Outlet Calculations
N2: For Interpolation
C3: Elevation | D3: Contour | E3: Storage | F3: Total | N3: Total | O3: Elevation
C4: Contour | D4: Area | E4: Volume | F4: Volume | N4: Volume | O4: Contour
C5: (feet) | D5: (Sq. ft) | E5: (Cu. ft.) | F5: (Cu. Ft.) | N5: (Cu. Ft.) | O5: (feet)
B6: (lowest) | C6: 893 | D6: 8273 | E6: 0 | F6: 0 | N6: =F6 -> 0 | O6: =IF(C6=0,"-",C6) -> 893
C7: 894 | D7: 9400 | E7: =IF(D7=0,"-",(D6+D7+(D6*D7)^0.5)*((C7-C6)/3)) -> 8830.504871 | F7: =IF(E7="-","-",E7+E6) -> 8830.504871 | N7: 8830.504871 | O7: 894
C8: 895 | D8: 10600 | E8: 9993.99459 | F8: =IF(E8="-","-",E8+E7) -> 18824.49946 | N8: 18824.49946 | O8: 895
C9: 896 | D9: 11871 | E9: 11229.50436 | F9: 21223.49895 | N9: 21223.49895 | O9: 896
E10: - | F10: - | N10: - | O10: -
E11: - | F11: - | N11: - | O11: -
E12: - | F12: - | N12: - | O12: -
E13: - | F13: - | N13: - | O13: -
E14: - | F14: - | N14: - | O14: -
E15: - | F15: - | N15: - | O15: -
E16: - | F16: - | N16: - | O16: -
E17: - | F17: - | N17: - | O17: -
E18: - | F18: - | N18: - | O18: -
E19: - | F19: - | N19: - | O19: -
E20: - | F20: - | N20: - | O20: -
B21: (highest) | E21: - | F21: - | N21: - | O21: -
C24: 1-Stage Outlet Design - INFILTRATION REQUIREMENT SATISFIED | H24: 2-Stage Outlet Design - INFILTRATION REQUIREMENT NOT MET
H25: 25-Year Allowable Peak Discharge | J25: =SUMMARY!C13 -> 2 | K25: cfs
C26: 25-Year Allowable Peak Discharge | E26: =SUMMARY!C13 -> 2 | F26: cfs | H26: 2-Year Allowable Peak Discharge | J26: ='PRE vs POST Calculations'!W82 -> 3.696982276 | K26: cfs
C28: 25-Year Peak Storage Volume: | E28: =SUMMARY!C18 -> 92342.5 | F28: cft | H28: 2-Year Peak Storage Volume: | J28: =SUMMARY!C10 -> 77855.75785 | K28: cft
H29: 25-Year Peak Storage Volume: | J29: =SUMMARY!C18 -> 92342.5 | K29: cft
D31: Peak Storage Elevations | I31: Peak Storage Elevations
D33: Xbot = | E33: =C6 -> 893 | I33: Xbot = | J33: =C6 -> 893
D34: X25 = | E34: =IFERROR(INDEX($N$6:$O$21,MATCH(E28,$N$6:$N$21,1),2)+(E28-INDEX($N$6:$O$21,MATCH(E28,$N$6:$N$21,1),1))*(INDEX($N$6:$O$21,MATCH(E28,$N$6:$N$21,1)+1,2)-INDEX($N$6:$O$21,MATCH(E28,$N$6:$N$21,1),2))/(INDEX($N$6:$O$21,MATCH(E28,$N$6:$N$21,1)+1,1)-INDEX($N$6:$O$21, MATCH(E28,$N$6:$N$21,1),1)),"-") -> - | I34: X2 = | J34: =IFERROR(INDEX($N$6:$O$21,MATCH(J28,$N$6:$N$21,1),2)+(J28-INDEX($N$6:$O$21,MATCH(J28,$N$6:$N$21,1),1))*(INDEX($N$6:$O$21,MATCH(J28,$N$6:$N$21,1)+1,2)-INDEX($N$6:$O$21,MATCH(J28,$N$6:$N$21,1),2))/(INDEX($N$6:$O$21,MATCH(J28,$N$6:$N$21,1)+1,1)-INDEX($N$6:$O$21, MATCH(J28,$N$6:$N$21,1),1)),"-") -> -
I35: X25 = | J35: =IFERROR(INDEX($N$6:$O$21,MATCH(J29,$N$6:$N$21,1),2)+(J29-INDEX($N$6:$O$21,MATCH(J29,$N$6:$N$21,1),1))*(INDEX($N$6:$O$21,MATCH(J29,$N$6:$N$21,1)+1,2)-INDEX($N$6:$O$21,MATCH(J29,$N$6:$N$21,1),2))/(INDEX($N$6:$O$21,MATCH(J29,$N$6:$N$21,1)+1,1)-INDEX($N$6:$O$21, MATCH(J29,$N$6:$N$21,1),1)),"-") -> -
C37: 25-Year Orifice and Peak Flow Calculations | H37: 2-Year Orifice and Peak Flow Calculations
C38: 25-Year Allowable Peak Discharge: | E38: =E26 -> 2 | F38: cfs | H38: 2-Year Allowable Peak Discharge: | J38: =J26 -> 3.696982276 | K38: cfs
C40: Chosen Orifice Size (25-Year Control): | F40: in | H40: Chosen Orifice Size (2-Year Control): | K40: in
C41: Chosen Orifice Area: | E41: =3.14159*(E40/2)^2/144 -> 0 | F41: sft | H41: Chosen Orifice Area: | J41: =3.14159*(J40/2)^2/144 -> 0 | K41: sft
C42: Number of Orifices (25-Year Control): | H42: Number of Orifices (2-Year Control):
C43: Total Opening Area of 25-Year Control Orifice(s): | E43: =E41*E42 -> 0 | F43: sft | H43: Total Opening Area of 2-Year Control Orifice(s): | J43: =J41*J42 -> 0 | K43: sft
C44: 25-year Peak Flow: | D44: 0.62*#orif*Aorifact*sqrt(2*g*h) | E44: =0.62*E42*E41*SQRT(2*32.2*(E34-E33-(0.5*E40/12))) ->  | F44: cfs | H44: 2-Year Peak Head: | I44: (X2-Xbot-X1/2OrificeDia) | J44: =J34-J33-(0.5*(J40/12)) ->  | K44: ft
C45: 25-Year Peak Flow Requirement Met? | D45: Q25act < Q25allow? | E45: =E44<E38 ->  | H45: 2-Year Peak Flow: | I45: 0.62*#orif*Aorifact*sqrt(2*g*h) | J45: =0.62*J42*J41*SQRT(2*32.2*J44) ->  | K45: cfs
H46: 2-Year Peak Flow Requirement Met?: | I46: Q2act < Q2allow? | J46: =J45<J38 -> 
H48: 25-Year Orifice and Peak Flow Calculations
H49: 25-Year Allowable Peak Discharge: | J49: =J25 -> 2 | K49: cfs
H50: Flow through 2-Year Control: | I50: 0.62*#orif2*Aorif2*sqrt(2*g*(X25-Xbot-X1/2OrificeDia)) | J50: =0.62*J42*J41*SQRT(2*32.2*(J35-J33-(0.5*J40/12))) ->  | K50: cfs
H51: Allowable Flow for 25-Year Control: | I51: Q25allow - Q2 | J51: =J49-J50 ->  | K51: cfs
H53: Chosen Orifice Size (25-Year Control): | K53: in
H54: Chosen Orifice Area: | J54: =3.14159*(J53/2)^2/144 -> 0 | K54: sft
H55: Number of Orifices (25-Year control):
H56: Total Opening Area of 25-Year Control Orifice(s): | J56: =J54*J55 -> 0 | K56: sft
H57: 25-year Peak Flow: | I57: Q2 + 0.62*#orif*Aorifact*sqrt(2*g*h) | J57: =J50+0.62*J55*J54*SQRT(2*32.2*(J35-J33-(0.5*J53/12))) ->  | K57: cfs
H58: 25-Year Peak Flow Requirement Met? | I58: Q25act < Q25allow? | J58: =J57<J49 -> 

Sheet PRE vs POST Calculations
B2: Water Quality Treatment Volume | J2: Channel Protection Volume | Y2: Flood Protection Volume: 10-yr | AG2: Flood Protection Volume: 100-yr | AO2: Flood Protection Volume: 25-yr
B3: 0.08333333333 | C3: * | D3: Total Site Area (A) (Ft2) | E3: * | F3: Weighted C | G3: = | H3: VWQ (ft3) | J3: Site Name: | K3: =INPUT!C4 -> Example 20-acre Commercial Development | Y3: Site Name: | Z3: =K3 -> Example 20-acre Commercial Development | AG3: Site Name: | AH3: =K3 -> Example 20-acre Commercial Development | AO3: Site Name: | AP3: =K3 -> Example 20-acre Commercial Development
B4: 0.08333333333 | C4: * | D4: =INPUT!C33*43560 -> 871200 | E4: * | F4: =INPUT!G33 -> 0.725 | G4: = | H4: =B4*D4*F4 -> 52635 | J4: Total Site Area (acres) | K4: =INPUT!D9 -> 0 | R4: To Calculate the Existing and Proposed Peak Stormwater Runoff Rate | Y4: Total Site Area (acres): | Z4: =K4 -> 0 | AG4: Total Site Area (acres): | AH4: =K4 -> 0 | AO4: Total Site Area (acres): | AP4: =K4 -> 0
J5: 2-Year, 24-Hour Rainfall: | K5: 2.38 | Y5: 10-Year, 24-Hour Rainfall: | Z5: =S9 -> 3.56 | AG5: 100-Year, 24-Hour Rainfall: | AH5: =S10 -> 5.71 | AO5: 25-Year, 24-Hour Rainfall: | AP5: =S11 -> 4.33
R6: PRECIPITATION
J7: Pre-development Conditions | R7: Frequency | S7: Rainfall (P) (in) | Y7: Pre-development Conditions | AG7: Pre-development Conditions | AO7: Pre-development Conditions
J8: Cover Type/Soil Type | K8: Area | L8: Area | M8: CN | N8: S | O8: Q Runoff1 | P8: Runoff Volume2 | R8: 2-yr, 24 hr | S8: 2.54 | Y8: Cover Type/Soil Type | Z8: Area | AA8: Area | AB8: CN | AC8: S | AD8: Q Runoff | AE8: Runoff Volume | AG8: Cover Type/Soil Type | AH8: Area | AI8: Area | AJ8: CN | AK8: S | AL8: Q Runoff | AM8: Runoff Volume | AO8: Cover Type/Soil Type | AP8: Area | AQ8: Area | AR8: CN | AS8: S | AT8: Q Runoff | AU8: Runoff Volume
K9: (sf) | L9: (ac) | O9: (in) | P9: (ft3) | R9: 10-yr, 24 hr | S9: 3.56 | Z9: (sf) | AA9: (ac) | AD9: (in) | AE9: (ft3) | AH9: (sf) | AI9: (ac) | AL9: (in) | AM9: (ft3) | AP9: (sf) | AQ9: (ac) | AT9: (in) | AU9: (ft3)
J10: =INPUT!D15 -> Row Crops (Type B) | K10: =L10*43560 -> 871200 | L10: =INPUT!C15 -> 20 | M10: =INPUT!H15 -> 75 | N10: =IFERROR(1000/M10-10,"") -> 3.333333333 | O10: =IFERROR((($K$5-0.2*N10)^2)/($K$5+0.8*N10),"") -> 0.5816732717 | P10: =IFERROR(O10/12*K10, 0) -> 42229.47952 | R10: 100-yr, 24 hr | S10: 5.71 | Y10: =J10 -> Row Crops (Type B) | Z10: =AA10*43560 -> 871200 | AA10: =L10 -> 20 | AB10: =M10 -> 75 | AC10: =IFERROR(1000/AB10-10,"") -> 3.333333333 | AD10: =IFERROR((($Z$5-0.2*AC10)^2)/($Z$5+0.8*AC10),"") -> 1.344439686 | AE10: =IFERROR(AD10/12*Z10, 0) -> 97606.3212 | AG10: =J10 -> Row Crops (Type B) | AH10: =AI10*43560 -> 871200 | AI10: =L10 -> 20 | AJ10: =M10 -> 75 | AK10: =IFERROR(1000/AJ10-10,"") -> 3.333333333 | AL10: =IFERROR((($AH$5-0.2*AK10)^2)/($AH$5+0.8*AK10),"") -> 3.036435867 | AM10: =IFERROR(AL10/12*AH10, 0) -> 220445.2439 | AO10: =J10 -> Row Crops (Type B) | AP10: =AQ10*43560 -> 871200 | AQ10: =L10 -> 20 | AR10: =M10 -> 75 | AS10: =IFERROR(1000/AR10-10,"") -> 3.333333333 | AT10: =IFERROR((($AP$5-0.2*AS10)^2)/($AP$5+0.8*AS10),"") -> 1.918057805 | AU10: =IFERROR(AT10/12*AP10, 0) -> 139250.9967
J11: =INPUT!D16 -> 0 | K11: =L11*43560 -> 0 | L11: =INPUT!C16 -> 0 | M11: =INPUT!H16 ->  | N11: =IFERROR(1000/M11-10,"") ->  | O11: =IFERROR((($K$5-0.2*N11)^2)/($K$5+0.8*N11),"") ->  | P11: =IFERROR(O11/12*K11, 0) -> 0 | R11: 25-yr, 24 hr | S11: 4.33 | Y11: =J11 -> 0 | Z11: =AA11*43560 -> 0 | AA11: =L11 -> 0 | AB11: =M11 ->  | AC11: =IFERROR(1000/AB11-10,"") ->  | AD11: =IFERROR((($Z$5-0.2*AC11)^2)/($Z$5+0.8*AC11),"") ->  | AE11: =IFERROR(AD11/12*Z11, 0) -> 0 | AG11: =J11 -> 0 | AH11: =AI11*43560 -> 0 | AI11: =L11 -> 0 | AJ11: =M11 ->  | AK11: =IFERROR(1000/AJ11-10,"") ->  | AL11: =IFERROR((($AH$5-0.2*AK11)^2)/($AH$5+0.8*AK11),"") ->  | AM11: =IFERROR(AL11/12*AH11, 0) -> 0 | AO11: =J11 -> 0 | AP11: =AQ11*43560 -> 0 | AQ11: =L11 -> 0 | AR11: =M11 ->  | AS11: =IFERROR(1000/AR11-10,"") ->  | AT11: =IFERROR((($AP$5-0.2*AS11)^2)/($AP$5+0.8*AS11),"") ->  | AU11: =IFERROR(AT11/12*AP11, 0) -> 0
J12: =INPUT!D17 -> 0 | K12: 0 | L12: =INPUT!C17 -> 0 | M12: =INPUT!H17 ->  | P12: 0 | Y12: 0 | Z12: 0 | AA12: 0 | AE12: 0 | AG12: 0 | AH12: 0 | AI12: 0 | AM12: 0 | AO12: 0 | AP12: 0 | AQ12: 0 | AU12: 0
J13: =INPUT!D18 -> 0 | K13: 0 | L13: =INPUT!C18 -> 0 | M13: =INPUT!H18 ->  | P13: 0 | Y13: 0 | Z13: 0 | AA13: 0 | AE13: 0 | AG13: 0 | AH13: 0 | AI13: 0 | AM13: 0 | AO13: 0 | AP13: 0 | AQ13: 0 | AU13: 0
J14: =INPUT!D19 -> 0 | K14: 0 | L14: =INPUT!C19 -> 0 | M14: =INPUT!H19 ->  | P14: 0 | R14: MAXIMUM RETENTION (S-in) | Y14: 0 | Z14: 0 | AA14: 0 | AE14: 0 | AG14: 0 | AH14: 0 | AI14: 0 | AM14: 0 | AO14: 0 | AP14: 0 | AQ14: 0 | AU14: 0
J15: =INPUT!D20 -> 0 | K15: 0 | L15: =INPUT!C20 -> 0 | M15: =INPUT!H20 ->  | P15: 0 | R15: Pre-Development | S15: =MIN(IFERROR((1000/INPUT!I21)-10,0),15) -> 3.333333333 | Y15: 0 | Z15: 0 | AA15: 0 | AE15: 0 | AG15: 0 | AH15: 0 | AI15: 0 | AM15: 0 | AO15: 0 | AP15: 0 | AQ15: 0 | AU15: 0
J16: TOTAL | K16: =SUM(K10:K15) -> 871200 | L16: =SUM(L10:L15) -> 20 | M16: N/A | N16: N/A | O16: N/A | P16: =SUM(P10:P15) -> 42229.47952 | R16: Post-Development | S16: =IFERROR((1000/INPUT!I33)-10,0) -> 1.267605634 | Y16: TOTAL | Z16: =SUM(Z10:Z15) -> 871200 | AA16: =SUM(AA10:AA15) -> 20 | AB16: N/A | AC16: N/A | AD16: N/A | AE16: =SUM(AE10:AE15) -> 97606.3212 | AG16: TOTAL | AH16: =SUM(AH10:AH15) -> 871200 | AI16: =SUM(AI10:AI15) -> 20 | AJ16: N/A | AK16: N/A | AL16: N/A | AM16: =SUM(AM10:AM15) -> 220445.2439 | AO16: TOTAL | AP16: =SUM(AP10:AP15) -> 871200 | AQ16: =SUM(AQ10:AQ15) -> 20 | AR16: N/A | AS16: N/A | AT16: N/A | AU16: =SUM(AU10:AU15) -> 139250.9967
R18: RUNOFF (Q-in) | Y18: Post-development Conditions | AG18: Post-development Conditions | AO18: Post-development Conditions
J19: Post-development Conditions | S19: Pre-Development | T19: Post-Development | Y19: Cover Type/Soil Type | Z19: Area | AA19: Area | AB19: CN | AC19: S | AD19: Q Runoff | AE19: Runoff Volume | AG19: Cover Type/Soil Type | AH19: Area | AI19: Area | AJ19: CN | AK19: S | AL19: Q Runoff | AM19: Runoff Volume | AO19: Cover Type/Soil Type | AP19: Area | AQ19: Area | AR19: CN | AS19: S | AT19: Q Runoff | AU19: Runoff Volume
J20: Cover Type | K20: Area | L20: Area | M20: CN | N20: S | O20: Q Runoff1 | P20: Runoff Volume2 | R20: 2 yr, 24 hr | S20: =(($S$8-(0.2*$S$15))^2)/($S$8+(0.8*$S$15)) -> 0.6740162185 | T20: =(($S$8-(0.2*$S$16))^2)/($S$8+(0.8*$S$16)) -> 1.470979553 | Z20: (sf) | AA20: (ac) | AD20: (in) | AE20: (ft3) | AH20: (sf) | AI20: (ac) | AL20: (in) | AM20: (ft3) | AP20: (sf) | AQ20: (ac) | AT20: (in) | AU20: (ft3)
K21: (sf) | L21: (ac) | O21: (in) | P21: (ft3) | R21: 10 yr, 24 hr | S21: =(($S$9-(0.2*$S$15))^2)/($S$9+(0.8*$S$15)) -> 1.344439686 | T21: =(($S$9-(0.2*$S$16))^2)/($S$9+(0.8*$S$16)) -> 2.390161905 | Y21: =J22 -> Impervious Cover (pavement/gravel/rooftop) | Z21: =AA21*43560 -> 653400 | AA21: =L22 -> 15 | AB21: =M22 -> 98 | AC21: =IFERROR(1000/AB21-10,"") -> 0.2040816327 | AD21: =IFERROR((($Z$5-0.2*AC21)^2)/($Z$5+0.8*AC21),"") -> 3.326288274 | AE21: =IFERROR(AD21/12*Z21, 0) -> 181116.3965 | AG21: =J22 -> Impervious Cover (pavement/gravel/rooftop) | AH21: =AI21*43560 -> 653400 | AI21: =L22 -> 15 | AJ21: =M22 -> 98 | AK21: =IFERROR(1000/AJ21-10,"") -> 0.2040816327 | AL21: =IFERROR((($AH$5-0.2*AK21)^2)/($AH$5+0.8*AK21),"") -> 5.472193379 | AM21: =IFERROR(AL21/12*AH21, 0) -> 297960.9295 | AO21: =J22 -> Impervious Cover (pavement/gravel/rooftop) | AP21: =AQ21*43560 -> 653400 | AQ21: =L22 -> 15 | AR21: =M22 -> 98 | AS21: =IFERROR(1000/AR21-10,"") -> 0.2040816327 | AT21: =IFERROR((($AP$5-0.2*AS21)^2)/($AP$5+0.8*AS21),"") -> 4.094371316 | AU21: =IFERROR(AT21/12*AP21, 0) -> 222938.5182
J22: =INPUT!D27 -> Impervious Cover (pavement/gravel/rooftop) | K22: =L22*43560 -> 653400 | L22: =INPUT!C27 -> 15 | M22: =INPUT!H27 -> 98 | N22: =IFERROR(1000/M22-10,"") -> 0.2040816327 | O22: =IFERROR((($K$5-0.2*N22)^2)/($K$5+0.8*N22),"") -> 2.151478355 | P22: =IFERROR(O22/12*K22,0) -> 117147.9965 | R22: 100 yr, 24 hr | S22: =(($S$10-(0.2*$S$15))^2)/($S$10+(0.8*$S$15)) -> 3.036435867 | T22: =(($S$10-(0.2*$S$16))^2)/($S$10+(0.8*$S$16)) -> 4.427838714 | Y22: =J23 -> Manicured Lawn Areas (Type B) | Z22: =AA22*43560 -> 217800 | AA22: =L23 -> 5 | AB22: =M23 -> 61 | AC22: =IFERROR(1000/AB22-10,"") -> 6.393442623 | AD22: =IFERROR((($Z$5-0.2*AC22)^2)/($Z$5+0.8*AC22),"") -> 0.5999457724 | AE22: =IFERROR(AD22/12*Z22, 0) -> 10889.01577 | AG22: =J23 -> Manicured Lawn Areas (Type B) | AH22: =AI22*43560 -> 217800 | AI22: =L23 -> 5 | AJ22: =M23 -> 61 | AK22: =IFERROR(1000/AJ22-10,"") -> 6.393442623 | AL22: =IFERROR((($AH$5-0.2*AK22)^2)/($AH$5+0.8*AK22),"") -> 1.814038565 | AM22: =IFERROR(AL22/12*AH22, 0) -> 32924.79996 | AO22: =J23 -> Manicured Lawn Areas (Type B) | AP22: =AQ22*43560 -> 217800 | AQ22: =L23 -> 5 | AR22: =M23 -> 61 | AS22: =IFERROR(1000/AR22-10,"") -> 6.393442623 | AT22: =IFERROR((($AP$5-0.2*AS22)^2)/($AP$5+0.8*AS22),"") -> 0.9857855083 | AU22: =IFERROR(AT22/12*AP22, 0) -> 17892.00698
J23: =INPUT!D28 -> Manicured Lawn Areas (Type B) | K23: =L23*43560 -> 217800 | L23: =INPUT!C28 -> 5 | M23: =INPUT!H28 -> 61 | N23: =IFERROR(1000/M23-10,"") -> 6.393442623 | O23: =IFERROR((($K$5-0.2*N23)^2)/($K$5+0.8*N23),"") -> 0.1618314557 | P23: =IFERROR(O23/12*K23,0) -> 2937.240921 | R23: 25 yr, 24 hr | S23: =(($S$11-(0.2*$S$15))^2)/($S$11+(0.8*$S$15)) -> 1.918057805 | T23: =(($S$11-(0.2*$S$16))^2)/($S$11+(0.8*$S$16)) -> 3.109546636 | Y23: 0 | Z23: 0 | AA23: 0 | AE23: 0 | AG23: 0 | AH23: 0 | AI23: 0 | AM23: 0 | AO23: 0 | AP23: 0 | AQ23: 0 | AU23: 0
J24: =INPUT!D29 -> 0 | K24: 0 | L24: =INPUT!C29 -> 0 | M24: =INPUT!H29 ->  | P24: 0 | Y24: 0 | Z24: 0 | AA24: 0 | AE24: 0 | AG24: 0 | AH24: 0 | AI24: 0 | AM24: 0 | AO24: 0 | AP24: 0 | AQ24: 0 | AU24: 0
J25: =INPUT!D30 -> 0 | K25: 0 | L25: =INPUT!C30 -> 0 | M25: =INPUT!H30 ->  | P25: 0 | R25: Calculate Initial Abstraction | Y25: 0 | Z25: 0 | AA25: 0 | AE25: 0 | AG25: 0 | AH25: 0 | AI25: 0 | AM25: 0 | AO25: 0 | AP25: 0 | AQ25: 0 | AU25: 0
J26: =INPUT!D31 -> 0 | K26: 0 | L26: =INPUT!C31 -> 0 | M26: =INPUT!H31 ->  | P26: 0 | Y26: 0 | Z26: 0 | AA26: 0 | AE26: 0 | AG26: 0 | AH26: 0 | AI26: 0 | AM26: 0 | AO26: 0 | AP26: 0 | AQ26: 0 | AU26: 0
J27: =INPUT!D32 -> 0 | K27: 0 | L27: =INPUT!C32 -> 0 | M27: =INPUT!H32 ->  | P27: 0 | R27: Pre-Development | Y27: TOTAL | Z27: =SUM(Z21:Z26) -> 871200 | AA27: =SUM(AA21:AA26) -> 20 | AB27: N/A | AC27: N/A | AD27: N/A | AE27: =SUM(AE21:AE26) -> 192005.4123 | AG27: TOTAL | AH27: =SUM(AH21:AH26) -> 871200 | AI27: =SUM(AI21:AI26) -> 20 | AJ27: N/A | AK27: N/A | AL27: N/A | AM27: =SUM(AM21:AM26) -> 330885.7295 | AO27: TOTAL | AP27: =SUM(AP21:AP26) -> 871200 | AQ27: =SUM(AQ21:AQ26) -> 20 | AR27: N/A | AS27: N/A | AT27: N/A | AU27: =SUM(AU21:AU26) -> 240830.5251
J28: TOTAL | K28: =SUM(K22:K27) -> 871200 | L28: =SUM(L22:L27) -> 20 | M28: N/A | N28: N/A | O28: N/A | P28: =SUM(P22:P27) -> 120085.2374 | R28: Curve Number | S28: Initial Abstraction (Ia)
R29: =IFERROR(INPUT!I21,"") -> 75 | S29: =IFERROR(((1000/R29)-10)*0.2,0) -> 0.6666666667 | AA29: V10 Runoff Volume Increase (ft3) = | AC29: =AE27-AE16 -> 94399.09107 | AI29: V100 Runoff Volume Increase (ft3) = | AK29: =AM27-AM16 -> 110440.4855 | AQ29: V25 Runoff Volume Increase (ft3) = | AS29: =AU27-AU16 -> 101579.5285
J30: VCP Volume Increase (ft3) | K30: =P28-P16 -> 77855.75785
R31: Post-Development | AA31: 10-year peak detention pond discharge (cfs) = | AC31: =IFERROR(W83,0) -> 23.67573471 | AI31: 100-year peak detention pond discharge (cfs) = | AK31: =IFERROR(W84,0) -> 56.88671847 | AQ31: 25-year peak detention pond discharge (cfs) = | AS31: =IFERROR(W85,0) -> 34.77930762
J32: Compare the Channel Protection Volume with the Water Quality Volume, the Greater of the two is the Onsite Infiltration Requirement. | R32: Curve Number | S32: Initial Abstraction (Ia)
R33: =IFERROR(INPUT!I33,"") -> 88.75 | S33: =IFERROR(((1000/R33)-10)*0.2,0) -> 0.2535211268
K34: VWQ (ft3) = | M34: =H4 -> 52635
K35: VCP Volume Increase (ft3) = | M35: =K30 -> 77855.75785 | R35: Calculate Ia/P - Pre-Development
J37: Onsite Infiltration Requirement, Vinf (ft3) = | L37: =LARGE(M34:M35,1) -> 77855.75785 | R37: Pre-Development
R38: Frequency | S38: Ia (in) | T38: Rainfall (P-in) | U38: Ia/P
R39: 2 yr, 24 hr | S39: =$S$29 -> 0.6666666667 | T39: =S20 -> 0.6740162185 | U39: =IF(S39/T39<0.1,0.1,IF(S39/T39>0.5,0.5,S39/T39)) -> 0.5
R40: 10 yr, 24 hr | S40: =$S$29 -> 0.6666666667 | T40: =S9 -> 3.56 | U40: =IF(S40/T40<0.1,0.1,IF(S40/T40>0.5,0.5,S40/T40)) -> 0.1872659176
R41: 100 yr, 24 hr | S41: =$S$29 -> 0.6666666667 | T41: =S10 -> 5.71 | U41: =IF(S41/T41<0.1,0.1,IF(S41/T41>0.5,0.5,S41/T41)) -> 0.1167542323
R42: 25 yr, 24 hr | S42: =$S$29 -> 0.6666666667 | T42: =S11 -> 4.33 | U42: =IF(S42/T42<0.1,0.1,IF(S42/T42>0.5,0.5,S42/T42)) -> 0.1539645881
R44: Post-Development
R45: Frequency | S45: Ia (in) | T45: Rainfall (P-in) | U45: Ia/P
R46: 2 yr, 24 hr | S46: =$S$33 -> 0.2535211268 | T46: =T20 -> 1.470979553 | U46: =IF(S46/T46<0.1,0.1,IF(S46/T46>0.5,0.5,S46/T46)) -> 0.172348505
R47: 10 yr, 24 hr | S47: =$S$33 -> 0.2535211268 | T47: =S9 -> 3.56 | U47: =IF(S47/T47<0.1,0.1,IF(S47/T47>0.5,0.5,S47/T47)) -> 0.1
R48: 100 yr, 24 hr | S48: =$S$33 -> 0.2535211268 | T48: =S10 -> 5.71 | U48: =IF(S48/T48<0.1,0.1,IF(S48/T48>0.5,0.5,S48/T48)) -> 0.1
R49: 25 yr, 24 hr | S49: =$S$33 -> 0.2535211268 | T49: =S11 -> 4.33 | U49: =IF(S49/T49<0.1,0.1,IF(S49/T49>0.5,0.5,S49/T49)) -> 0.1
R51: Calculate Unit Peak Discharge (qu)
R52: Log(qu) = | S52: C0 + C1*log(Tc) + C2*[log(Tc)]2
R53: qu = | S53: 10^(C0 + C1*log(Tc) + C2*[log(Tc)]2)
R54: Rainfall Type II
R55: Ia/P | S55: C0 | T55: Ia/P | U55: C1 | V55: Ia/P | W55: C2
R56: 0.1 | S56: 2.55323 | T56: 0.1 | U56: -0.61512 | V56: 0.1 | W56: -0.16403
R57: 0.3 | S57: 2.46532 | T57: 0.3 | U57: -0.62257 | V57: 0.3 | W57: -0.11657
R58: 0.35 | S58: 2.41896 | T58: 0.35 | U58: -0.61594 | V58: 0.35 | W58: -0.0882
R59: 0.4 | S59: 2.36409 | T59: 0.4 | U59: -0.59857 | V59: 0.4 | W59: -0.05621
R60: 0.45 | S60: 2.29238 | T60: 0.45 | U60: -0.57005 | V60: 0.45 | W60: -0.02281
R61: 0.5 | S61: 2.0282 | T61: 0.5 | U61: -0.51599 | V61: 0.5 | W61: -0.01259
R63: Pre-Development
R64: Frequency | S64: Ia/P | T64: C0 | U64: C1 | V64: C2 | W64: qu
R65: 2 yr, 24 hr | S65: =IF(U39<0.5,U39,0.4999999) -> 0.4999999 | T65: =INDEX($R$56:$S$61,MATCH($S$65,$R$56:$R$61,1),2)+($S$65-INDEX($R$56:$S$61,MATCH($S$65,$R$56:$R$61,1),1))*(INDEX($R$56:$S$61,MATCH($S$65,$R$56:$R$61,1)+1,2)-INDEX($R$56:$S$61,MATCH($S$65,$R$56:$R$61,1),2))/(INDEX($R$56:$S$61,MATCH($S$65,$R$56:$R$61,1)+1,1)-INDEX($R$56:$S$61, MATCH($S$65,$R$56:$R$61,1),1)) -> 2.028200528 | U65: =INDEX($T$56:$U$61,MATCH($S$65,$T$56:$T$61,1),2)+($S$65-INDEX($T$56:$U$61,MATCH($S$65,$T$56:$T$61,1),1))*(INDEX($T$56:$U$61,MATCH($S$65,$T$56:$T$61,1)+1,2)-INDEX($T$56:$U$61,MATCH($S$65,$T$56:$T$61,1),2))/(INDEX($T$56:$U$61,MATCH($S$65,$T$56:$T$61,1)+1,1)-INDEX($T$56:$U$61, MATCH($S$65,$T$56:$T$61,1),1)) -> -0.5159901081 | V65: =INDEX($V$56:$W$61,MATCH($S$65,$V$56:$V$61,1),2)+($S$65-INDEX($V$56:$W$61,MATCH($S$65,$V$56:$V$61,1),1))*(INDEX($V$56:$W$61,MATCH($S$65,$V$56:$V$61,1)+1,2)-INDEX($V$56:$W$61,MATCH($S$65,$V$56:$V$61,1),2))/(INDEX($V$56:$W$61,MATCH($S$65,$V$56:$V$61,1)+1,1)-INDEX($V$56:$W$61, MATCH($S$65,$V$56:$V$61,1),1)) -> -0.01259002044 | W65: =IFERROR(10^(T65+U65*LOG(INPUT!$H$49)+V65*(LOG(INPUT!$H$49))^2),0) -> 175.5201575
R66: 10 yr, 24 hr | S66: =IF(U40<0.5,U40,0.4999999) -> 0.1872659176 | T66: =INDEX($R$56:$S$61,MATCH($S$66,$R$56:$R$61,1),2)+($S$66-INDEX($R$56:$S$61,MATCH($S$66,$R$56:$R$61,1),1))*(INDEX($R$56:$S$61,MATCH($S$66,$R$56:$R$61,1)+1,2)-INDEX($R$56:$S$61,MATCH($S$66,$R$56:$R$61,1),2))/(INDEX($R$56:$S$61,MATCH($S$66,$R$56:$R$61,1)+1,1)-INDEX($R$56:$S$61, MATCH($S$66,$R$56:$R$61,1),1)) -> 2.514872266 | U66: =INDEX($T$56:$U$61,MATCH($S$66,$T$56:$T$61,1),2)+($S$66-INDEX($T$56:$U$61,MATCH($S$66,$T$56:$T$61,1),1))*(INDEX($T$56:$U$61,MATCH($S$66,$T$56:$T$61,1)+1,2)-INDEX($T$56:$U$61,MATCH($S$66,$T$56:$T$61,1),2))/(INDEX($T$56:$U$61,MATCH($S$66,$T$56:$T$61,1)+1,1)-INDEX($T$56:$U$61, MATCH($S$66,$T$56:$T$61,1),1)) -> -0.6183706554 | V66: =INDEX($V$56:$W$61,MATCH($S$66,$V$56:$V$61,1),2)+($S$66-INDEX($V$56:$W$61,MATCH($S$66,$V$56:$V$61,1),1))*(INDEX($V$56:$W$61,MATCH($S$66,$V$56:$V$61,1)+1,2)-INDEX($V$56:$W$61,MATCH($S$66,$V$56:$V$61,1),2))/(INDEX($V$56:$W$61,MATCH($S$66,$V$56:$V$61,1)+1,1)-INDEX($V$56:$W$61, MATCH($S$66,$V$56:$V$61,1),1)) -> -0.1433217978 | W66: =IFERROR(10^(T66+U66*LOG(INPUT!$H$49)+V66*(LOG(INPUT!$H$49))^2),0) -> 563.5236141
R67: 100 yr, 24 hr | S67: =IF(U41<0.5,U41,0.4999999) -> 0.1167542323 | T67: =INDEX($R$56:$S$61,MATCH($S$67,$R$56:$R$61,1),2)+($S$67-INDEX($R$56:$S$61,MATCH($S$67,$R$56:$R$61,1),1))*(INDEX($R$56:$S$61,MATCH($S$67,$R$56:$R$61,1)+1,2)-INDEX($R$56:$S$61,MATCH($S$67,$R$56:$R$61,1),2))/(INDEX($R$56:$S$61,MATCH($S$67,$R$56:$R$61,1)+1,1)-INDEX($R$56:$S$61, MATCH($S$67,$R$56:$R$61,1),1)) -> 2.545865677 | U67: =INDEX($T$56:$U$61,MATCH($S$67,$T$56:$T$61,1),2)+($S$67-INDEX($T$56:$U$61,MATCH($S$67,$T$56:$T$61,1),1))*(INDEX($T$56:$U$61,MATCH($S$67,$T$56:$T$61,1)+1,2)-INDEX($T$56:$U$61,MATCH($S$67,$T$56:$T$61,1),2))/(INDEX($T$56:$U$61,MATCH($S$67,$T$56:$T$61,1)+1,1)-INDEX($T$56:$U$61, MATCH($S$67,$T$56:$T$61,1),1)) -> -0.6157440952 | V67: =INDEX($V$56:$W$61,MATCH($S$67,$V$56:$V$61,1),2)+($S$67-INDEX($V$56:$W$61,MATCH($S$67,$V$56:$V$61,1),1))*(INDEX($V$56:$W$61,MATCH($S$67,$V$56:$V$61,1)+1,2)-INDEX($V$56:$W$61,MATCH($S$67,$V$56:$V$61,1),2))/(INDEX($V$56:$W$61,MATCH($S$67,$V$56:$V$61,1)+1,1)-INDEX($V$56:$W$61, MATCH($S$67,$V$56:$V$61,1),1)) -> -0.1600542207 | W67: =IFERROR(10^(T67+U67*LOG(INPUT!$H$49)+V67*(LOG(INPUT!$H$49))^2),0) -> 599.5104363
R68: 25 yr, 24 hr | S68: =IF(U42<0.5,U42,0.4999999) -> 0.1539645881 | T68: =INDEX($R$56:$S$61,MATCH($S$68,$R$56:$R$61,1),2)+($S$68-INDEX($R$56:$S$61,MATCH($S$68,$R$56:$R$61,1),1))*(INDEX($R$56:$S$61,MATCH($S$68,$R$56:$R$61,1)+1,2)-INDEX($R$56:$S$61,MATCH($S$68,$R$56:$R$61,1),2))/(INDEX($R$56:$S$61,MATCH($S$68,$R$56:$R$61,1)+1,1)-INDEX($R$56:$S$61, MATCH($S$68,$R$56:$R$61,1),1)) -> 2.529509865 | U68: =INDEX($T$56:$U$61,MATCH($S$68,$T$56:$T$61,1),2)+($S$68-INDEX($T$56:$U$61,MATCH($S$68,$T$56:$T$61,1),1))*(INDEX($T$56:$U$61,MATCH($S$68,$T$56:$T$61,1)+1,2)-INDEX($T$56:$U$61,MATCH($S$68,$T$56:$T$61,1),2))/(INDEX($T$56:$U$61,MATCH($S$68,$T$56:$T$61,1)+1,1)-INDEX($T$56:$U$61, MATCH($S$68,$T$56:$T$61,1),1)) -> -0.6171301809 | V68: =INDEX($V$56:$W$61,MATCH($S$68,$V$56:$V$61,1),2)+($S$68-INDEX($V$56:$W$61,MATCH($S$68,$V$56:$V$61,1),1))*(INDEX($V$56:$W$61,MATCH($S$68,$V$56:$V$61,1)+1,2)-INDEX($V$56:$W$61,MATCH($S$68,$V$56:$V$61,1),2))/(INDEX($V$56:$W$61,MATCH($S$68,$V$56:$V$61,1)+1,1)-INDEX($V$56:$W$61, MATCH($S$68,$V$56:$V$61,1),1)) -> -0.1512242032 | W68: =IFERROR(10^(T68+U68*LOG(INPUT!$H$49)+V68*(LOG(INPUT!$H$49))^2),0) -> 580.2420766
R70: Post-Development
R71: Frequency | S71: Ia/P | T71: C0 | U71: C1 | V71: C2 | W71: qu
R72: 2 yr, 24 hr | S72: =IF(U46<0.5,U46,0.499999) -> 0.172348505 | T72: =INDEX($R$56:$S$61,MATCH($S$72,$R$56:$R$61,1),2)+($S$72-INDEX($R$56:$S$61,MATCH($S$72,$R$56:$R$61,1),1))*(INDEX($R$56:$S$61,MATCH($S$72,$R$56:$R$61,1)+1,2)-INDEX($R$56:$S$61,MATCH($S$72,$R$56:$R$61,1),2))/(INDEX($R$56:$S$61,MATCH($S$72,$R$56:$R$61,1)+1,1)-INDEX($R$56:$S$61, MATCH($S$72,$R$56:$R$61,1),1)) -> 2.521429215 | U72: =INDEX($T$56:$U$61,MATCH($S$72,$T$56:$T$61,1),2)+($S$72-INDEX($T$56:$U$61,MATCH($S$72,$T$56:$T$61,1),1))*(INDEX($T$56:$U$61,MATCH($S$72,$T$56:$T$61,1)+1,2)-INDEX($T$56:$U$61,MATCH($S$72,$T$56:$T$61,1),2))/(INDEX($T$56:$U$61,MATCH($S$72,$T$56:$T$61,1)+1,1)-INDEX($T$56:$U$61, MATCH($S$72,$T$56:$T$61,1),1)) -> -0.6178149818 | V72: =INDEX($V$56:$W$61,MATCH($S$72,$V$56:$V$61,1),2)+($S$72-INDEX($V$56:$W$61,MATCH($S$72,$V$56:$V$61,1),1))*(INDEX($V$56:$W$61,MATCH($S$72,$V$56:$V$61,1)+1,2)-INDEX($V$56:$W$61,MATCH($S$72,$V$56:$V$61,1),2))/(INDEX($V$56:$W$61,MATCH($S$72,$V$56:$V$61,1)+1,1)-INDEX($V$56:$W$61, MATCH($S$72,$V$56:$V$61,1),1)) -> -0.1468616998 | W72: =IFERROR(10^(T72+U72*LOG(INPUT!$H$64)+V72*(LOG(INPUT!$H$64))^2),0) -> 657.5541138
R73: 10 yr, 24 hr | S73: =U47 -> 0.1 | T73: =INDEX($R$56:$S$61,MATCH($S$73,$R$56:$R$61,1),2)+($S$73-INDEX($R$56:$S$61,MATCH($S$73,$R$56:$R$61,1),1))*(INDEX($R$56:$S$61,MATCH($S$73,$R$56:$R$61,1)+1,2)-INDEX($R$56:$S$61,MATCH($S$73,$R$56:$R$61,1),2))/(INDEX($R$56:$S$61,MATCH($S$73,$R$56:$R$61,1)+1,1)-INDEX($R$56:$S$61, MATCH($S$73,$R$56:$R$61,1),1)) -> 2.55323 | U73: =INDEX($T$56:$U$61,MATCH($S$73,$T$56:$T$61,1),2)+($S$73-INDEX($T$56:$U$61,MATCH($S$73,$T$56:$T$61,1),1))*(INDEX($T$56:$U$61,MATCH($S$73,$T$56:$T$61,1)+1,2)-INDEX($T$56:$U$61,MATCH($S$73,$T$56:$T$61,1),2))/(INDEX($T$56:$U$61,MATCH($S$73,$T$56:$T$61,1)+1,1)-INDEX($T$56:$U$61, MATCH($S$73,$T$56:$T$61,1),1)) -> -0.61512 | V73: =INDEX($V$56:$W$61,MATCH($S$73,$V$56:$V$61,1),2)+($S$73-INDEX($V$56:$W$61,MATCH($S$73,$V$56:$V$61,1),1))*(INDEX($V$56:$W$61,MATCH($S$73,$V$56:$V$61,1)+1,2)-INDEX($V$56:$W$61,MATCH($S$73,$V$56:$V$61,1),2))/(INDEX($V$56:$W$61,MATCH($S$73,$V$56:$V$61,1)+1,1)-INDEX($V$56:$W$61, MATCH($S$73,$V$56:$V$61,1),1)) -> -0.16403 | W73: =IFERROR(10^(T73+U73*LOG(INPUT!$H$64)+V73*(LOG(INPUT!$H$64))^2),0) -> 696.6314124
R74: 100 yr, 24 hr | S74: =U48 -> 0.1 | T74: =INDEX($R$56:$S$61,MATCH($S$74,$R$56:$R$61,1),2)+($S$74-INDEX($R$56:$S$61,MATCH($S$74,$R$56:$R$61,1),1))*(INDEX($R$56:$S$61,MATCH($S$74,$R$56:$R$61,1)+1,2)-INDEX($R$56:$S$61,MATCH($S$74,$R$56:$R$61,1),2))/(INDEX($R$56:$S$61,MATCH($S$74,$R$56:$R$61,1)+1,1)-INDEX($R$56:$S$61, MATCH($S$74,$R$56:$R$61,1),1)) -> 2.55323 | U74: =INDEX($T$56:$U$61,MATCH($S$74,$T$56:$T$61,1),2)+($S$74-INDEX($T$56:$U$61,MATCH($S$74,$T$56:$T$61,1),1))*(INDEX($T$56:$U$61,MATCH($S$74,$T$56:$T$61,1)+1,2)-INDEX($T$56:$U$61,MATCH($S$74,$T$56:$T$61,1),2))/(INDEX($T$56:$U$61,MATCH($S$74,$T$56:$T$61,1)+1,1)-INDEX($T$56:$U$61, MATCH($S$74,$T$56:$T$61,1),1)) -> -0.61512 | V74: =INDEX($V$56:$W$61,MATCH($S$74,$V$56:$V$61,1),2)+($S$74-INDEX($V$56:$W$61,MATCH($S$74,$V$56:$V$61,1),1))*(INDEX($V$56:$W$61,MATCH($S$74,$V$56:$V$61,1)+1,2)-INDEX($V$56:$W$61,MATCH($S$74,$V$56:$V$61,1),2))/(INDEX($V$56:$W$61,MATCH($S$74,$V$56:$V$61,1)+1,1)-INDEX($V$56:$W$61, MATCH($S$74,$V$56:$V$61,1),1)) -> -0.16403 | W74: =IFERROR(10^(T74+U74*LOG(INPUT!$H$64)+V74*(LOG(INPUT!$H$64))^2),0) -> 696.6314124
R75: 25 yr, 24 hr | S75: =U49 -> 0.1 | T75: =INDEX($R$56:$S$61,MATCH($S$75,$R$56:$R$61,1),2)+($S$75-INDEX($R$56:$S$61,MATCH($S$75,$R$56:$R$61,1),1))*(INDEX($R$56:$S$61,MATCH($S$75,$R$56:$R$61,1)+1,2)-INDEX($R$56:$S$61,MATCH($S$75,$R$56:$R$61,1),2))/(INDEX($R$56:$S$61,MATCH($S$75,$R$56:$R$61,1)+1,1)-INDEX($R$56:$S$61, MATCH($S$75,$R$56:$R$61,1),1)) -> 2.55323 | U75: =INDEX($T$56:$U$61,MATCH($S$75,$T$56:$T$61,1),2)+($S$75-INDEX($T$56:$U$61,MATCH($S$75,$T$56:$T$61,1),1))*(INDEX($T$56:$U$61,MATCH($S$75,$T$56:$T$61,1)+1,2)-INDEX($T$56:$U$61,MATCH($S$75,$T$56:$T$61,1),2))/(INDEX($T$56:$U$61,MATCH($S$75,$T$56:$T$61,1)+1,1)-INDEX($T$56:$U$61, MATCH($S$75,$T$56:$T$61,1),1)) -> -0.61512 | V75: =INDEX($V$56:$W$61,MATCH($S$75,$V$56:$V$61,1),2)+($S$75-INDEX($V$56:$W$61,MATCH($S$75,$V$56:$V$61,1),1))*(INDEX($V$56:$W$61,MATCH($S$75,$V$56:$V$61,1)+1,2)-INDEX($V$56:$W$61,MATCH($S$75,$V$56:$V$61,1),2))/(INDEX($V$56:$W$61,MATCH($S$75,$V$56:$V$61,1)+1,1)-INDEX($V$56:$W$61, MATCH($S$75,$V$56:$V$61,1),1)) -> -0.16403 | W75: =IFERROR(10^(T75+U75*LOG(INPUT!$H$64)+V75*(LOG(INPUT!$H$64))^2),0) -> 696.6314124
R77: Calculate Peak Discharge (QP)
S78: *assume no ponding factor (Fp)= 1.0
R80: Pre-Development
R81: Frequency | S81: qu | T81: Am (sq. mi.) | U81: Q-in | V81: Fp | W81: Qp (cfs)
R82: 2 yr, 24 hr | S82: =W65 -> 175.5201575 | T82: =INPUT!$C$21/640 -> 0.03125 | U82: =S20 -> 0.6740162185 | V82: 1 | W82: =S82*T82*U82*V82 -> 3.696982276
R83: 10 yr, 24 hr | S83: =W66 -> 563.5236141 | T83: =INPUT!$C$21/640 -> 0.03125 | U83: =S21 -> 1.344439686 | V83: 1 | W83: =S83*T83*U83*V83 -> 23.67573471
R84: 100 yr, 24 hr | S84: =W67 -> 599.5104363 | T84: =INPUT!$C$21/640 -> 0.03125 | U84: =S22 -> 3.036435867 | V84: 1 | W84: =S84*T84*U84*V84 -> 56.88671847
R85: 25 yr, 24 hr | S85: =W68 -> 580.2420766 | T85: =INPUT!$C$21/640 -> 0.03125 | U85: =S23 -> 1.918057805 | V85: 1 | W85: =S85*T85*U85*V85 -> 34.77930762
R87: Post-Development
R88: Frequency | S88: qu | T88: Am (sq. mi.) | U88: Q-in | V88: Fp | W88: Qp (cfs)
R89: 2 yr, 24 hr | S89: =W72 -> 657.5541138 | T89: =INPUT!$C$33/640 -> 0.03125 | U89: =T20 -> 1.470979553 | V89: 1 | W89: =S89*T89*U89*V89 -> 30.2265205
R90: 10 yr, 24 hr | S90: =W73 -> 696.6314124 | T90: =INPUT!$C$33/640 -> 0.03125 | U90: =T21 -> 2.390161905 | V90: 1 | W90: =S90*T90*U90*V90 -> 52.03318324
R91: 100 yr, 24 hr | S91: =W74 -> 696.6314124 | T91: =INPUT!$C$33/640 -> 0.03125 | U91: =T22 -> 4.427838714 | V91: 1 | W91: =S91*T91*U91*V91 -> 96.39286053
R92: 25 yr, 24 hr | S92: =W75 -> 696.6314124 | T92: =INPUT!$C$33/640 -> 0.03125 | U92: =T23 -> 3.109546636 | V92: 1 | W92: =S92*T92*U92*V92 -> 67.69399579

Sheet Restricted Outlet Calculations
A3: Restricted Outflow Discharge (qo) | B3: =IF(INPUT!D8="","N/A",INPUT!D8) -> 2 | C3: cfs
A4: 25-yr Peak Inflow Discharge (qi) | B4: ='PRE vs POST Calculations'!W92 -> 67.69399579 | C4: cfs
A5: Qo / Qi RATIO | B5: =B3/B4 -> 0.02954471777
A6: vs / vr RATIO | B6: =-0.142*LN(B5)+0.2062 -> 0.7063027436
A8: 25-yr Post-Development Runoff Volume (vr) | B8: ='PRE vs POST Calculations'!AU27 -> 240830.5251 | C8: cubic feet
A9: 25-yr Storage Volume for Flood Control (vs) | B9: =IF(B5<0.01,B8,(ROUND((-0.142*LN(B5)+0.2062)*B8,-3))) -> 170000 | C9: cubic feet
A11: Notes for Designers:
A12: 1. When qo/qi is at 0.01 or below, store entire 100-yr runoff volume (vr)
A13: 2. Designers may use hydrologic/hydraulic routing models to confirm exact storage volume needed
A14: 3. vs / vr ratio = [ -.142 * ln(Qo/Qi) + 0.2062 ]
A15: 4. Required volume (vs) = vs / vr ratio * vr
A16: 5. This spreadsheet is intented ONLY for restricted outlet scenarios for the 25-year storm
A18: Note: these calculations may result in a lower flood control volume (vs) relative to the 'pre-vs.-post' volume calculated on the SUMMARY tab. This can occur when the curve numbers are very low (SCS Soil Type A + Low Intensity Development). In this case, the flood storage volume calculated in this worksheet shall be considered INVALID.
G22: Source: USDA-NRCS, Urban Hydrology for Small Watersheds, TR-55, June 1986
G23: For x-axis values less than 0.1, curve based on HEC-HMS detention pond routing for typical developments

Sheet BMP Volume Calculations
B2: BMP INFILTRATION VOLUME
B3: Proposed BMP | E3: BMP Area (ft2) | F3: Storage Volume (ft3) | G3: Infiltration Period (hrs) | H3: Avg Design Infiltraton Rate (in/hr) | I3: Infiltration Volume (ft3) | J3: Total BMP Volume (ft3)
J4: (Storage Volume + Infiltration Volume)
B5: Bioretention/Rain Garden | D5: #1 | E5: ='BMP INPUT'!C7 -> 11500 | F5: ='BMP INPUT'!C14 -> 21400 | G5: 6 | H5: =IF('BMP INPUT'!C3<0.4,0.4,'BMP INPUT'!C3) -> 0.6 | I5: =E5/12*G5*H5 -> 3450 | J5: =F5+I5 -> 24850
B6: Bioretention/Rain Garden | D6: #2 | E6: ='BMP INPUT'!C22 -> 10050 | F6: ='BMP INPUT'!C29 -> 18690 | G6: 6 | H6: =IF('BMP INPUT'!C18<0.4,0.4,'BMP INPUT'!C18) -> 0.7 | I6: =E6/12*G6*H6 -> 3517.5 | J6: =F6+I6 -> 22207.5
B7: Bioretention/Rain Garden | D7: #3 | E7: ='BMP INPUT'!C37 -> 8600 | F7: ='BMP INPUT'!C44 -> 20280 | G7: 6 | H7: =IF('BMP INPUT'!C33<0.4,0.4,'BMP INPUT'!C33) -> 2.4 | I7: 10320 | J7: 30600
B8: Porous Pavement | D8: #1 | E8: ='BMP INPUT'!F4 -> 0 | F8: ='BMP INPUT'!F7 -> 0 | G8: 6 | H8: =IF('BMP INPUT'!F3<0.4,0.4,'BMP INPUT'!F3) -> 0.4 | I8: 0 | J8: 0
B9: Porous Pavement | D9: #2 | E9: ='BMP INPUT'!F11 -> 0 | F9: ='BMP INPUT'!F14 -> 0 | G9: 6 | H9: =IF('BMP INPUT'!F10<0.4,0.4,'BMP INPUT'!F10) -> 0.4 | I9: 0 | J9: 0
B10: Porous Pavement | D10: #3 | E10: ='BMP INPUT'!F18 -> 0 | F10: ='BMP INPUT'!F21 -> 0 | G10: 6 | H10: =IF('BMP INPUT'!F17<0.4,0.4,'BMP INPUT'!F17) -> 0.4 | I10: 0 | J10: 0
B11: Dry Well | D11: #1 | E11: ='BMP INPUT'!I4 -> 0 | F11: ='BMP INPUT'!I7 -> 0 | G11: 6 | H11: =IF('BMP INPUT'!I3<0.4,0.4,'BMP INPUT'!I3) -> 0.4 | I11: 0 | J11: 0
B12: Dry Well | D12: #2 | E12: ='BMP INPUT'!I11 -> 0 | F12: ='BMP INPUT'!I14 -> 0 | G12: 6 | H12: =IF('BMP INPUT'!I10<0.4,0.4,'BMP INPUT'!I10) -> 0.4 | I12: 0 | J12: 0
B13: Dry Well | D13: #3 | E13: ='BMP INPUT'!I18 -> 0 | F13: ='BMP INPUT'!I21 -> 0 | G13: 6 | H13: =IF('BMP INPUT'!I17<0.4,0.4,'BMP INPUT'!I17) -> 0.4 | I13: 0 | J13: 0
B14: Bioswale | D14: #1 | E14: ='BMP INPUT'!L4*'BMP INPUT'!L7 -> 0 | F14: ='BMP INPUT'!L8 -> 0 | G14: 6 | H14: =IF('BMP INPUT'!L3<0.4,0.4,'BMP INPUT'!L3) -> 0.4 | I14: 0 | J14: 0
B15: Bioswale | D15: #2 | E15: ='BMP INPUT'!L12*'BMP INPUT'!L15 -> 0 | F15: ='BMP INPUT'!L16 -> 0 | G15: 6 | H15: =IF('BMP INPUT'!L11<0.4,0.4,'BMP INPUT'!L11) -> 0.4 | I15: 0 | J15: 0
B16: Bioswale | D16: #3 | E16: ='BMP INPUT'!L20*'BMP INPUT'!L23 -> 0 | F16: ='BMP INPUT'!L24 -> 0 | G16: 6 | H16: =IF('BMP INPUT'!L19<0.4,0.4,'BMP INPUT'!L19) -> 0.4 | I16: 0 | J16: 0
B17: Other: | C17: ='BMP INPUT'!O3 -> 0 | D17: #1 | E17: ='BMP INPUT'!O5 -> 0 | F17: ='BMP INPUT'!O6 -> 0 | G17: 6 | H17: =IF('BMP INPUT'!O4<0.4,0.4,'BMP INPUT'!O4) -> 0.4 | I17: 0 | J17: 0
B18: Other: | C18: ='BMP INPUT'!O9 -> 0 | D18: #2 | E18: ='BMP INPUT'!O11 -> 0 | F18: ='BMP INPUT'!O12 -> 0 | G18: 6 | H18: =IF('BMP INPUT'!O10<0.4,0.4,'BMP INPUT'!O10) -> 0.4 | I18: 0 | J18: 0
B19: Other: | C19: ='BMP INPUT'!O15 -> 0 | D19: #3 | E19: ='BMP INPUT'!O17 -> 0 | F19: ='BMP INPUT'!O18 -> 0 | G19: 6 | H19: =IF('BMP INPUT'!O16<0.4,0.4,'BMP INPUT'!O16) -> 0.4 | I19: 0 | J19: 0
B20: TOTAL | J20: =SUM(J5:J19) -> 77657.5

Sheet REF_Curve Numbers
A1: Curve Numbers
A3: Impervious Cover (pavement/gravel/rooftop) | B3: 98
A4: Open Water (detention pond footprint) | B4: 100
A5: Pasture/Grasslands (Type A) | B5: 42 | C5: (revised to CN=42 --> minimum CN allowed is 42)
A6: Pasture/Grasslands (Type B) | B6: 61
A7: Pasture/Grasslands (Type C) | B7: 74
A8: Meadow (Type A) | B8: 42 | C8: (revised to CN=42 --> minimum CN allowed is 42)
A9: Meadow (Type B) | B9: 58
A10: Meadow (Type C) | B10: 71
A11: Brush (Type A) | B11: 42 | C11: (revised to CN=42 --> minimum CN allowed is 42)
A12: Brush (Type B) | B12: 48
A13: Brush (Type C) | B13: 65
A14: Woods (Type A) | B14: 42 | C14: (revised to CN=42 --> minimum CN allowed is 42)
A15: Woods (Type B) | B15: 58
A16: Woods (Type C) | B16: 72
A17: Row Crops (Type A) | B17: 65
A18: Row Crops (Type B) | B18: 75 | C18: (capped at 75 - maximum CN for undeveloped conditions = 75)
A19: Row Crops (Type C) | B19: 75 | C19: (capped at 75 - maximum CN for undeveloped conditions = 75)
A20: Manicured Lawn Areas (Type A) | B20: 42 | C20: (revised to CN=42 --> minimum CN allowed is 42)
A21: Manicured Lawn Areas (Type B) | B21: 61
A22: Manicured Lawn Areas (Type C) | B22: 74
A23: Naturalized Pervious Areas (Type A) | B23: 42 | C23: (revised to CN=42 --> minimum CN allowed is 42)
A24: Naturalized Pervious Areas (Type B) | B24: 58
A25: Naturalized Pervious Areas (Type C) | B25: 71
A26: Residential Districts (avg lot size) - 1/8 acre or less (Type A) | B26: 77
A27: Residential Districts (avg lot size) - 1/8 acre or less (Type B) | B27: 85
A28: Residential Districts (avg lot size) - 1/8 acre or less (Type C) | B28: 90
A29: Residential Districts (avg lot size) - 1/4 acre (Type A) | B29: 61
A30: Residential Districts (avg lot size) - 1/4 acre (Type B) | B30: 75
A31: Residential Districts (avg lot size) - 1/4 acre (Type C) | B31: 83
A32: Residential Districts (avg lot size) - 1/3 acre (Type A) | B32: 57
A33: Residential Districts (avg lot size) - 1/3 acre (Type B) | B33: 72
A34: Residential Districts (avg lot size) - 1/3 acre (Type C) | B34: 81
A35: Residential Districts (avg lot size) - 1/2 acre (Type A) | B35: 54
A36: Residential Districts (avg lot size) - 1/2 acre (Type B) | B36: 70
A37: Residential Districts (avg lot size) - 1/2 acre (Type C) | B37: 80
A38: Residential Districts (avg lot size) - 1 acre (Type A) | B38: 51
A39: Residential Districts (avg lot size) - 1 acre (Type B) | B39: 68
A40: Residential Districts (avg lot size) - 1 acre (Type C) | B40: 79
A41: Residential Districts (avg lot size) - 2 acre (Type A) | B41: 46
A42: Residential Districts (avg lot size) - 2 acre (Type B) | B42: 65
A43: Residential Districts (avg lot size) - 2 acre (Type C) | B43: 77

Sheet REF_Runoff Coefficients
A1: Runoff Coefficients
A3: Impervious Cover (pavement/gravel/rooftop) | B3: 0.9
A4: Open Water (detention pond footprint) | B4: 1
A5: Pasture/Grasslands (Type A) | B5: 0.1
A6: Pasture/Grasslands (Type B) | B6: 0.15
A7: Pasture/Grasslands (Type C) | B7: 0.2
A8: Meadow (Type A) | B8: 0.1
A9: Meadow (Type B) | B9: 0.15
A10: Meadow (Type C) | B10: 0.2
A11: Brush (Type A) | B11: 0.1
A12: Brush (Type B) | B12: 0.15
A13: Brush (Type C) | B13: 0.2
A14: Woods (Type A) | B14: 0.1
A15: Woods (Type B) | B15: 0.15
A16: Woods (Type C) | B16: 0.2
A17: Row Crops (Type A) | B17: 0.15
A18: Row Crops (Type B) | B18: 0.2
A19: Row Crops (Type C) | B19: 0.25
A20: Manicured Lawn Areas (Type A) | B20: 0.15
A21: Manicured Lawn Areas (Type B) | B21: 0.2
A22: Manicured Lawn Areas (Type C) | B22: 0.25
A23: Naturalized Pervious Areas (Type A) | B23: 0.1
A24: Naturalized Pervious Areas (Type B) | B24: 0.15
A25: Naturalized Pervious Areas (Type C) | B25: 0.2
A26: Residential Districts (avg lot size) - 1/8 acre or less (Type A) | B26: 0.5
A27: Residential Districts (avg lot size) - 1/8 acre or less (Type B) | B27: 0.6
A28: Residential Districts (avg lot size) - 1/8 acre or less (Type C) | B28: 0.7
A29: Residential Districts (avg lot size) - 1/4 acre (Type A) | B29: 0.4
A30: Residential Districts (avg lot size) - 1/4 acre (Type B) | B30: 0.45
A31: Residential Districts (avg lot size) - 1/4 acre (Type C) | B31: 0.5
A32: Residential Districts (avg lot size) - 1/3 acre (Type A) | B32: 0.35
A33: Residential Districts (avg lot size) - 1/3 acre (Type B) | B33: 0.4
A34: Residential Districts (avg lot size) - 1/3 acre (Type C) | B34: 0.45
A35: Residential Districts (avg lot size) - 1/2 acre (Type A) | B35: 0.3
A36: Residential Districts (avg lot size) - 1/2 acre (Type B) | B36: 0.35
A37: Residential Districts (avg lot size) - 1/2 acre (Type C) | B37: 0.4
A38: Residential Districts (avg lot size) - 1 acre (Type A) | B38: 0.25
A39: Residential Districts (avg lot size) - 1 acre (Type B) | B39: 0.3
A40: Residential Districts (avg lot size) - 1 acre (Type C) | B40: 0.35
A41: Residential Districts (avg lot size) - 2 acre (Type A) | B41: 0.25
A42: Residential Districts (avg lot size) - 2 acre (Type B) | B42: 0.3
A43: Residential Districts (avg lot size) - 2 acre (Type C) | B43: 0.35

Sheet REF_Time of Concentration
A1: Segment Description
A3: Sheet Flow | B3: 0.48
A4: Waterway | B4: 1.2
A5: Small Tributary | B5: 2.1
